Cogmind - Beta 13 @@@ ROGUE MODE // 2024.03.07 @ 14:42:54 Player: beter Result: Destroyed by G-73 Enforcer with Phase Gun Performance ------------- Evolutions (8) 4000 Regions Visited (13) 2600 Robots Destroyed (143) 715 Value Destroyed (5643) 5643 Prototype IDs (18) 360 Alien Tech Used (0) 0 Bonus (1193) 1193 TOTAL SCORE: 14511 Bonus ------- High Alert Combat Kills 663 Follower Combat Kills 30 Entered DSFs 500 Cogmind --------- Core Integrity 0/1450 Matter 13/300 Energy 350/350 System Corruption 6% Temperature Cool (9) Movement Core (500) Ox9 Location -2/Research Parts ------- > --- POWER (3) -------- Reinforced Quantum Reactor > --- PROPULSION (6) --- (None) > --- UTILITY (8) ------ Advanced Signal Interpreter > --- WEAPON (6) ------- (None) > --- INVENTORY (5) ---- Improved Antigrav System Improved Antigrav System Launcher Loader EM Disruption Field Peak State ------------ > --- POWER ------------ Particle Reactor Micro Antimatter Reactor Micro Antimatter Reactor > --- PROPULSION ------- Medium Treads Enhanced Armored Medium Treads Enhanced Armored Medium Treads Enhanced Armored Medium Treads Enhanced Armored Medium Treads Enhanced Armored Medium Treads > --- UTILITY ---------- Advanced Cryofiber Web High-capacity Storage Unit Advanced Signal Interpreter Seismic Detector Heavy Armor Plating Antimissile System Drone Bay > --- WEAPON ----------- Gamma Rifle Gamma Rifle Quantum Rifle Compact HERF Cannon Linear Accelerator Compact Linear Accelerator > --- INVENTORY -------- Micro Antimatter Reactor Improved Antigrav System Improved Antigrav System Advanced Heat Sink Advanced Coolant Injector Small Battery Small Battery Launcher Loader Enhanced Quantum Rifle Enhanced Nova Cannon Enhanced Nova Cannon Railgun Advanced Remote Datajack [Rating: 159] Favorites ----------- Power Deuterium Engine Engine Deuterium Engine Power Core Enhanced Nuclear Core Reactor Micro Antimatter Reactor Propulsion Light Treads Treads Light Treads Leg Aluminum Leg Wheel Subdweller Monowheel Hover Unit Improved Gravmag System Utility Medium Storage Unit Device Improved Heat Sink Storage Medium Storage Unit Processor Advanced Signal Interpreter Protection Hardened Medium Armor Plating Weapon Enhanced Autogun Energy Gun Improved EM Shotgun Energy Cannon Ion Cannon Ballistic Gun Enhanced Autogun Ballistic Cannon Hardcell Cannon Launcher Improved Grenade Launcher Special Weapon Plasma Cutter Build | -11 -10 -10 -10 -8 -7 -6 -5 -5 -4 -4 -4 -3 -2 ------- Run | Yrd Mat Min Sub Mat Fac Fac Fac DSF Fac Was Fac Res Res Slots Evolved 16 | . . . . 4 2 2 2 . 2 . . 2 2 Power 2 | . . . . . 1 . . . . . . 1 . Propulsion 4 | . . . . 2 . . . . 2 . . . . Utility 6 | . . . . 1 . 2 1 . . . . . 2 Weapon 4 | . . . . 1 1 . 1 . . . . 1 . Parts Attached 198 | 6 8 6 8 42 18 24 3 12 10 1 16 22 22 Power 23 | 1 . 1 . 2 1 2 . 4 2 . 1 3 6 Engine 8 | 1 . 1 . 2 . 1 . . 2 . 1 . . Core 6 | . . . . . 1 1 . 4 . . . . . Reactor 9 | . . . . . . . . . . . . 3 6 Propulsion 44 | 2 2 1 4 9 3 4 . 4 2 . 5 8 . Treads 17 | . . . . 4 3 4 . . . . . 6 . Leg 14 | . 2 1 . 5 . . . . . . 5 1 . Wheel 6 | 2 . . 4 . . . . . . . . . . Hover 7 | . . . . . . . . 4 2 . . 1 . Flight . | . . . . . . . . . . . . . . Utility 52 | 1 2 . 1 12 8 6 1 2 3 1 2 6 7 Device 32 | . 1 . 1 7 5 6 1 . 3 . 1 2 5 Storage 11 | 1 1 . . 3 1 . . 1 . 1 . 1 2 Processor 5 | . . . . 1 1 . . 1 . . . 2 . Hackware . | . . . . . . . . . . . . . . Protection 4 | . . . . 1 1 . . . . . 1 1 . Artifact . | . . . . . . . . . . . . . . Weapon 79 | 2 4 4 3 19 6 12 2 2 3 . 8 5 9 Energy Gun 26 | 1 2 2 1 5 2 4 2 . . . 2 3 2 Energy Cannon 17 | . . . . 4 1 4 . 1 2 . 1 1 3 Ballistic Gun 14 | 1 1 1 2 4 1 1 . . . . 1 1 1 Ballistic Cannon 6 | . . . . 1 . . . . . . 3 . 2 Launcher 13 | . . . . 5 2 3 . 1 1 . 1 . . Special Weapon 3 | . 1 1 . . . . . . . . . . 1 Impact Weapon . | . . . . . . . . . . . . . . Slashing Weapon . | . . . . . . . . . . . . . . Piercing Weapon . | . . . . . . . . . . . . . . Special Melee Weapon . | . . . . . . . . . . . . . . Unidentified Prototypes 6 | . 1 . . 1 1 . . . . . . 2 1 Corrupted Parts 6 | . . . . . . . . . . . 3 3 . System Corruption 36 | . . . . . . . . . . . 7 29 . Parts Lost 77 | . 1 . . 9 2 6 . 5 . . 25 . 29 Power 10 | . . . . 1 . . . . . . 3 . 6 Propulsion 21 | . 1 . . 3 2 1 . 2 . . 7 . 5 Utility 20 | . . . . 3 . 2 . 1 . . 5 . 9 Weapon 26 | . . . . 2 . 3 . 2 . . 10 . 9 Highest Loss Streak 16 | . 1 . . 3 2 2 . 5 . . 9 . 16 To Critical Strikes 1 | . . . . . . . . . . . 1 . . Average Slot Usage (%) 87 | . 98 100 100 76 90 97 100 89 93 94 79 58 78 Engine 7 | . 14 14 14 7 7 6 5 . 5 5 4 . . Core 2 | . . . . . 6 5 5 10 5 5 3 . . Reactor 1 | . . . . . . . . . . . . 7 10 Treads 11 | . . . . 10 24 25 23 14 . . . 19 22 Leg 7 | . 17 28 5 13 . . . . . . 10 . . Wheel 2 | . 10 . 22 . . . . . . . . . . Hover 2 | . . . . . . . . 4 31 31 9 . . Device 14 | . 12 14 14 9 12 24 29 26 21 16 10 8 12 Storage 8 | . 14 14 14 7 7 6 5 5 5 8 9 3 4 Processor 1 | . . . . . 2 . . . 5 5 5 5 4 Energy Gun 9 | . 12 13 11 6 3 13 26 21 10 10 9 3 8 Energy Cannon 3 | . . . . 4 6 4 . 1 8 10 3 3 4 Ballistic Gun 8 | . 14 14 16 6 14 6 2 . . . . 1 1 Ballistic Cannon 1 | . . . . 2 . . . . . . 6 . 6 Launcher 1 | . . . . 3 1 . . 2 . . . . . Naked Turns . | . . . . . . . . . . . . . . Heaviest Build 144 | 12 20 20 20 76 81 85 83 95 59 59 83 125 144 Greatest Support 203 | 26 26 20 49 90 88 88 88 88 60 60 100 203 203 Greatest Overweight (x) 17 | 1 1 . . 1 1 1 . 6 . . 1 1 17 Average Overweight (x) . | . . . . . . . . . . . . . . Largest Inventory Capacity 20 | 8 10 10 10 20 20 20 20 20 10 10 10 20 20 Average Capacity 13 | 6 9 10 10 14 13 20 20 17 10 10 9 17 18 Most Carried 20 | 6 10 10 10 20 17 20 20 20 10 10 10 16 14 Average Carried 11 | 4 8 9 9 12 11 17 19 15 8 10 7 5 10 Final Capacity 20 | 8 10 10 10 10 20 20 20 10 10 10 5 20 5 Final Carried 20 | 6 10 10 10 10 16 20 20 10 10 10 2 12 5 Class Distribution -------------------- 31% | Mutant 18% | Scavenger-Gunner 16% | Gunner 14% | Scavenger-Skirmisher 6% | Scavenger-Tank 6% | Scavenger-Executioner 4% | Skirmisher Dominant Class ---------------- Mutant | -10/Materials Mutant | -10/Mines Mutant | -10/Subcaves Scavenger-Tank | -8/Materials Scavenger-Gunner | -7/Factory Scavenger-Gunner | -6/Factory Scavenger-Gunner | -5/Factory Gunner | -5/DSF Gunner | -4/Factory Gunner | -4/Waste Gunner | -4/Factory Mutant | -3/Research Scavenger-Executioner | -2/Research Resources | -11 -10 -10 -10 -8 -7 -6 -5 -5 -4 -4 -4 -3 -2 ----------- Run | Yrd Mat Min Sub Mat Fac Fac Fac DSF Fac Was Fac Res Res Matter Collected 3687 | 195 103 362 87 927 398 503 . 100 147 . 383 187 295 Remotely . | . . . . . . . . . . . . . . Salvage Created 5676 | . 242 153 81 1797 422 566 . 625 267 . 774 187 562 Parts 311 | . 21 6 3 110 19 24 . 40 11 . 35 18 24 Haulers Intercepted 1 | . 1 . . . . . . . . . . . . Recyclers Shooed 2 | . . . . 1 . . . . . . 1 . . Parts Field Recycled . | . . . . . . . . . . . . . . Retrieved Matter . | . . . . . . . . . . . . . . Parts Self-Destructed 5 | . . . 5 . . . . . . . . . . Prevented . | . . . . . . . . . . . . . . Kills | -11 -10 -10 -10 -8 -7 -6 -5 -5 -4 -4 -4 -3 -2 ------- Run | Yrd Mat Min Sub Mat Fac Fac Fac DSF Fac Was Fac Res Res Combat Hostiles Destroyed 109 | . 5 5 2 43 8 13 . 11 2 . 10 2 8 Guns 40 | . 3 4 . 14 4 4 . 5 . . 3 1 2 Cannons 38 | . . . . 17 2 6 . 1 2 . 5 . 5 AOE 28 | . 2 1 2 12 2 3 . 4 . . 2 . . Classes Destroyed 19 | . 6 . 1 6 1 . . 2 . . 1 1 1 Worker 9 | . 1 . . 4 . 1 . . 1 . 2 . . Builder 5 | . 1 . . 2 . . . . . . 2 . . Tunneler 1 | . . . . . . . . . . . . 1 . Hauler 1 | . 1 . . . . . . . . . . . . Recycler 1 | . . . . . . . . . . . 1 . . Mechanic 1 | . . . . 1 . . . . . . . . . Operator 4 | . . . . 2 1 1 . . . . . . . Watcher 12 | . 1 . . 5 1 2 . . 2 . 1 . . Swarmer 27 | . 3 3 . 10 . 4 . 4 . . 3 . . Grunt 36 | . 2 2 . 15 5 4 . 3 . . 1 . 4 Brawler 6 | . . . . 5 . 1 . . . . . . . Duelist 1 | . . . . . . . . . . . . . 1 Protector 2 | . . . . 2 . . . . . . . . . Sentry 16 | . . . . 9 2 2 . . 2 . . 1 . Specialist 3 | . . . . . . . . 3 . . . . . Hunter 6 | . . . . 2 . . . . . . 4 . . Programmer 8 | . . . . . 1 2 . . . . 2 1 2 Heavy 2 | . . . . . . . . 1 . . . . 1 Subdweller 2 | . . . 2 . . . . . . . . . . Best Kill Streak 9 | . 6 3 2 7 3 6 . 9 3 . 5 1 5 Combat Bots Only 9 | . 3 3 2 7 3 4 . 9 1 . 4 1 5 Max Kills in Single Turn 3 | . 3 1 2 3 2 1 . 3 2 . 2 1 1 Gunslinging 1 | . . . . 1 . . . . . . . . . Exploded 2 | . 2 1 2 2 2 1 . 2 . . 2 . . Melee . | . . . . . . . . . . . . . . Uniques/NPCs Destroyed . | . . . . . . . . . . . . . . Combat | -11 -10 -10 -10 -8 -7 -6 -5 -5 -4 -4 -4 -3 -2 -------- Run | Yrd Mat Min Sub Mat Fac Fac Fac DSF Fac Was Fac Res Res Hostile Shots Fired 1131 | . 15 21 1 196 77 125 . 78 . . 311 12 295 Missed 337 | . 6 4 1 58 22 50 . 19 . . 103 4 70 Damage Taken 16209 | . 253 225 90 2489 562 1084 . 1130 . . 3577 302 6497 Core 2879 | . 145 39 . 206 57 123 . 163 . . 629 66 1451 Absorbed by Shields 12 | . . . . . . 12 . . . . . . . Regen/Repaired (Parts) 328 | . . . . 43 . 285 . . . . . . . Core Remaining (%) 73 | 100 . . 26 62 91 85 . 83 . . 45 94 . Volleys Fired 277 | . 15 15 10 92 23 35 . 16 4 4 30 8 25 Largest 6 | . 2 2 2 3 4 4 . 5 4 4 5 5 6 Hottest 474 | . 65 65 70 169 201 228 . 330 298 298 348 373 474 Shots Fired 894 | . 25 27 20 253 89 125 . 67 16 16 128 20 108 Gun 535 | . 19 24 20 128 64 93 . 54 8 8 65 12 40 Cannon 322 | . . . . 113 23 27 . 10 7 8 60 8 66 Launcher 26 | . . . . 12 2 5 . 3 1 . 3 . . Special 11 | . 6 3 . . . . . . . . . . 2 Kinetic 323 | . 10 12 12 104 44 44 . . . . 44 4 49 Thermal 325 | . 6 3 . 79 43 63 . 32 8 8 53 4 26 Explosive 19 | . . . . 12 2 5 . . . . . . . Electromagnetic 225 | . 9 12 8 58 . 13 . 35 8 8 31 12 31 Robot Hit Streak 13 | . 8 8 13 12 11 8 . 13 5 13 10 5 9 Robot Miss Streak 10 | . 6 4 . 8 4 10 . 3 3 1 8 1 5 Penetration Max . | . . . . . . . . . . . . . . Secondary Targets 4 | . 1 1 . 2 . . . . . . . . . Max Gunslinging Chain 1 | . 1 1 . 1 . . . . . . . . . Shots Hit Robots 504 | . 7 17 10 142 59 77 . 33 10 14 66 15 54 Core Hits 267 | . 10 8 2 94 25 38 . 25 8 1 31 6 19 Critical Kills . | . . . . . . . . . . . . . . Critical Parts Destroyed . | . . . . . . . . . . . . . . Critical Strikes 5 | . . . . 1 1 . . 1 . . 2 . . Burn 1 | . . . . . . . . . . . 1 . . Destroy 1 | . . . . . 1 . . . . . . . . Blast 2 | . . . . 1 . . . . . . 1 . . Corrupt 1 | . . . . . . . . 1 . . . . . Melee Attacks . | . . . . . . . . . . . . . . Impact . | . . . . . . . . . . . . . . Slashing . | . . . . . . . . . . . . . . Piercing . | . . . . . . . . . . . . . . Sneak Attacks . | . . . . . . . . . . . . . . Combat Hostiles . | . . . . . . . . . . . . . . Follow-up Attacks . | . . . . . . . . . . . . . . Damage Inflicted 16425 | . 347 258 164 4935 1298 2212 . 1369 572 202 2602 477 1989 Guns 6715 | . 143 196 20 1309 852 1196 . 752 98 80 1198 270 601 Cannons 5624 | . . . . 1605 317 471 . 109 242 122 1163 207 1388 Explosions 4086 | . 204 62 144 2021 129 545 . 508 232 . 241 . . Melee . | . . . . . . . . . . . . . . Ramming . | . . . . . . . . . . . . . . Kinetic 3863 | . 24 54 . 1099 478 379 . . . . 797 89 943 Thermal 6611 | . 142 62 144 1778 691 1111 . 717 117 183 985 129 552 Explosive 2231 | . 62 . . 1342 129 545 . . 153 . . . . Electromagnetic 3720 | . 119 142 20 716 . 177 . 652 302 19 820 259 494 Impact . | . . . . . . . . . . . . . . Slashing . | . . . . . . . . . . . . . . Piercing . | . . . . . . . . . . . . . . Highest Corruption 29 | . . . . 16 2 3 . 1 . 5 14 29 6 Average Corruption 6 | . . . . 4 1 3 . 1 . 5 10 20 4 Corruption Purged 2 | . . . . . 2 . . . . . . . . Corruption Blocked . | . . . . . . . . . . . . . . Effects 83 | . . . . 16 2 18 . 1 . 3 25 10 8 Message Errors 19 | . . . . 5 . 5 . 1 . . 4 1 3 Matter Fused 17 | . . . . 4 1 4 . . . . 4 2 2 Heat Flow Errors 9 | . . . . 1 . 2 . . . . 5 1 . Energy Discharges 8 | . . . . 2 . 1 . . . 2 3 . . Parts Rejected 3 | . . . . 1 . 2 . . . . . . . Parts Fused 1 | . . . . . . . . . . . . . 1 Data Loss (minor) 10 | . . . . . . 3 . . . 1 2 3 1 Data Loss (major) 6 | . . . . . 1 1 . . . . 3 1 . Misfires 3 | . . . . 1 . . . . . . 1 1 . Alerts 2 | . . . . 2 . . . . . . . . . Misdirections 2 | . . . . . . . . . . . 2 . . Weapon Failures 3 | . . . . . . . . . . . 1 1 1 Overload Shots . | . . . . . . . . . . . . . . Overflow Damage 346 | . 5 . 9 75 . 26 . 21 41 . 66 . 103 Projectiles 214 | . . . . 35 . . . . 10 . 66 . 103 Explosions 132 | . 5 . 9 40 . 26 . 21 31 . . . . Melee . | . . . . . . . . . . . . . . Knockbacks 18 | . . . . 3 . . . . . . 6 . 9 Impact . | . . . . . . . . . . . . . . Kinetic 17 | . . . . 3 . . . . . . 6 . 8 Secondary 1 | . . . . . . . . . . . . . 1 Self-Inflicted Damage 806 | . 169 34 47 517 . . . 24 . . 15 . . Shots 19 | . 3 1 1 11 . . . 2 . . 1 . . Rammed . | . . . . . . . . . . . . . . Targets Rammed . | . . . . . . . . . . . . . . Kicked . | . . . . . . . . . . . . . . Crushed . | . . . . . . . . . . . . . . Highest Temperature 625 | . 82 131 8 407 386 326 . 225 178 237 531 400 625 Average Temperature 123 | . 38 51 6 110 125 89 . 76 98 117 179 194 165 Received Heat Transfer 2928 | . 24 75 . 693 207 165 . 291 . . 519 18 936 Effects 14 | . . . . 3 . 2 . . . . 5 . 4 Shutdowns 4 | . . . . 2 . . . . . . 1 . 1 Energy Bleed 4 | . . . . 1 . 2 . . . . . . 1 Interference 3 | . . . . . . . . . . . 3 . . Short Circuit 1 | . . . . . . . . . . . . . 1 Damage (minor) 1 | . . . . . . . . . . . 1 . . Damage (core) 1 | . . . . . . . . . . . . . 1 Siege Activations . | . . . . . . . . . . . . . . Robots Corrupted 3 | . . . . . . . . 1 . . . 1 1 Combat Hostiles 3 | . . . . . . . . 1 . . . 1 1 Parts Fried 16 | . . 1 . 2 . 2 . 1 3 . 5 1 1 Impact Corruptions . | . . . . . . . . . . . . . . Robots Melted . | . . . . . . . . . . . . . . Combat Hostiles . | . . . . . . . . . . . . . . Parts Melted 16 | . . . . 2 5 6 . . 1 . 2 . . Heat Transferred 9629 | . 200 100 100 2454 1290 2027 . 1036 161 298 1260 148 555 Parts Sabotaged . | . . . . . . . . . . . . . . Parts Stolen . | . . . . . . . . . . . . . . Parts Stripped . | . . . . . . . . . . . . . . Power Chain Reactions 9 | . 2 1 1 3 . . . 2 . . . . . Alert | -11 -10 -10 -10 -8 -7 -6 -5 -5 -4 -4 -4 -3 -2 ------- Run | Yrd Mat Min Sub Mat Fac Fac Fac DSF Fac Was Fac Res Res Peak Influence 1210 | . 222 134 . 1210 572 452 137 337 342 98 342 159 82 Initial 550 | . . 8 . . 550 193 137 95 176 98 65 84 11 Average 311 | . 133 34 . 722 406 297 137 216 258 91 148 75 36 Maximum Alert Level 4 | . 1 . . 4 2 2 . 1 1 . 1 . . Low Security (%) 44 | 100 45 100 . 14 . 4 100 54 14 100 83 100 100 Level 1 31 | . 54 . . 5 61 89 . 45 85 . 16 . . Level 2 10 | . . . . 21 38 5 . . . . . . . Level 3 9 | . . . . 43 . . . . . . . . . Level 4 3 | . . . . 15 . . . . . . . . . Level 5 . | . . . . . . . . . . . . . . High Security . | . . . . . . . . . . . . . . Max Security . | . . . . . . . . . . . . . . Sterilizations 1 | . . . . . . . . 1 . . . . . Squads Dispatched 25 | . . 1 . 6 5 2 . 2 . . 4 1 4 Investigation 3 | . . 1 . 1 1 . . . . . . . . Extermination 6 | . . . . . 1 2 . . . . 1 1 1 Reinforcement 11 | . . . . 2 1 . . 2 . . 3 . 3 Assault 3 | . . . . 3 . . . . . . . . . Garrison 2 | . . . . . 2 . . . . . . . . Intercept . | . . . . . . . . . . . . . . Searches Triggered . | . . . . . . . . . . . . . . Construction Impeded 3 | . . . . 1 . . . . . . 1 . 1 Haulers Reinforced . | . . . . . . . . . . . . . . Active Scanning Responses . | . . . . . . . . . . . . . . Cargo Convoy Interrupts . | . . . . . . . . . . . . . . Stealth | -11 -10 -10 -10 -8 -7 -6 -5 -5 -4 -4 -4 -3 -2 --------- Run | Yrd Mat Min Sub Mat Fac Fac Fac DSF Fac Was Fac Res Res Distress Signals 8 | . 2 . . 1 1 1 . . . . 3 . . Communications Jammed . | . . . . . . . . . . . . . . Distress Signals . | . . . . . . . . . . . . . . Times Spotted 191 | . 9 7 9 60 15 16 . 13 3 6 31 3 19 Peak Tracking Total 12 | . 4 3 6 7 4 5 . 4 1 6 12 2 7 Tactical Retreats 9 | . . . . 4 1 . . 2 . . 1 . 1 Traps | -11 -10 -10 -10 -8 -7 -6 -5 -5 -4 -4 -4 -3 -2 ------- Run | Yrd Mat Min Sub Mat Fac Fac Fac DSF Fac Was Fac Res Res Traps Triggered 9 | . . . 1 1 2 1 . 1 1 . . 1 1 Indirectly . | . . . . . . . . . . . . . . Trap Hack Attempts . | . . . . . . . . . . . . . . Triggered . | . . . . . . . . . . . . . . Disarmed 3 | . . . . . . . . . . . 3 . . Reprogrammed . | . . . . . . . . . . . . . . Reused . | . . . . . . . . . . . . . . Traps Extracted . | . . . . . . . . . . . . . . Installed . | . . . . . . . . . . . . . . Triggered . | . . . . . . . . . . . . . . Machines | -11 -10 -10 -10 -8 -7 -6 -5 -5 -4 -4 -4 -3 -2 ---------- Run | Yrd Mat Min Sub Mat Fac Fac Fac DSF Fac Was Fac Res Res Machines Disabled 27 | . 3 . 1 12 . 2 . . 4 . 5 . . Max in Single Turn 4 | . 3 . 1 3 . 1 . . 4 . 4 . . Machines Repaired . | . . . . . . . . . . . . . . Machines Dismantled . | . . . . . . . . . . . . . . Machines Sabotaged . | . . . . . . . . . . . . . . Overloaded Fab Kills . | . . . . . . . . . . . . . . Hacking | -11 -10 -10 -10 -8 -7 -6 -5 -5 -4 -4 -4 -3 -2 --------- Run | Yrd Mat Min Sub Mat Fac Fac Fac DSF Fac Was Fac Res Res Machines Accessed 30 | . 2 1 1 6 6 4 1 . 2 . 4 1 2 Terminals 19 | . 1 . . 3 5 3 1 . 1 . 2 1 2 Fabricators 1 | . . . . . . . . . . . 1 . . Repair Stations 3 | . . . . 2 . 1 . . . . . . . Recycling Units 4 | . 1 . . . 1 . . . 1 . 1 . . Scanalyzers 1 | . . . . 1 . . . . . . . . . Garrison Access . | . . . . . . . . . . . . . . Total Hacks 102 | . 7 1 9 27 20 9 2 . 5 . 11 5 6 Successful 62 | . 2 1 9 15 10 6 1 . 5 . 7 2 4 Failed 39 | . 5 . . 12 10 3 1 . . . 4 2 2 Catastrophic 7 | . . . . 1 4 1 . . . . 1 . . Database Lockouts 1 | . . . . . . . . . . . . 1 . Manual . | . . . . . . . . . . . . . . Terminals 65 | . 5 . . 14 17 7 2 . 2 . 7 5 6 Fabricators 3 | . . . . . . . . . . . 3 . . Repair Stations 6 | . . . . 4 . 2 . . . . . . . Recycling Units 9 | . 2 . . . 3 . . . 3 . 1 . . Scanalyzers 9 | . . . . 9 . . . . . . . . . Garrison Access . | . . . . . . . . . . . . . . Terminal Hacks 43 | . 1 1 9 6 8 4 1 . 2 . 5 2 4 Record 16 | . . . 8 2 . 2 . . . . . 2 2 Prototype ID Bank 1 | . . . . 1 . . . . . . . . . Open Door 1 | . . 1 . . . . . . . . . . . Open DSF 1 | . . . . . . . 1 . . . . . . Level Access Points 1 | . . . . . . . . . . . 1 . . Branch Access Points 2 | . . . . . . 1 . . . . . . 1 Emergency Access Points 3 | . 1 . . . 1 . . . . . . . 1 Terminal Index 1 | . . . . . . . . . 1 . . . . Alert Level 1 | . . . . 1 . . . . . . . . . Unreport Threat 2 | . . . . . 1 . . . 1 . . . . Locate Traps 4 | . . . . . 2 1 . . . . 1 . . Disarm Traps 1 | . . . . . . . . . . . 1 . . Maintenance Status 1 | . . . . 1 . . . . . . . . . Hauler Manifests 3 | . . . . 1 2 . . . . . . . . Registered Components 1 | . . . . . 1 . . . . . . . . Zone Layout 3 | . . . . . 1 . . . . . 2 . . Derelict Proto ID Bank 1 | . . . 1 . . . . . . . . . . Fabricator Hacks 2 | . . . . . . . . . . . 2 . . Network Status 1 | . . . . . . . . . . . 1 . . Build 1 | . . . . . . . . . . . 1 . . Repair Station Hacks 5 | . . . . 3 . 2 . . . . . . . Scan Component 3 | . . . . 2 . 1 . . . . . . . Repair 2 | . . . . 1 . 1 . . . . . . . Recycling Unit Hacks 6 | . 1 . . . 2 . . . 3 . . . . Recycle Component 3 | . 1 . . . 1 . . . 1 . . . . Process 2 | . . . . . 1 . . . 1 . . . . Report Inventory 1 | . . . . . . . . . 1 . . . . Scanalyzer 6 | . . . . 6 . . . . . . . . . Insert Component 3 | . . . . 3 . . . . . . . . . Analyze 3 | . . . . 3 . . . . . . . . . Garrison Access Hacks . | . . . . . . . . . . . . . . Unauthorized Hacks . | . . . . . . . . . . . . . . Terminals . | . . . . . . . . . . . . . . Fabricators . | . . . . . . . . . . . . . . Repair Stations . | . . . . . . . . . . . . . . Recycling Units . | . . . . . . . . . . . . . . Scanalyzers . | . . . . . . . . . . . . . . Garrison Access . | . . . . . . . . . . . . . . Data Cores Recovered 2 | . . . . 1 . 1 . . . . . . . Used 1 | . . . . . . 1 . . . . . . . Hacking Detections 26 | . 2 . . 6 6 4 . . 2 . 3 1 2 Full Trace Events 2 | . . . . 1 1 . . . . . . . . Feedback Events . | . . . . . . . . . . . . . . Feedback Blocked . | . . . . . . . . . . . . . . Robot Schematics Acquired . | . . . . . . . . . . . . . . Robots Built . | . . . . . . . . . . . . . . Authchips . | . . . . . . . . . . . . . . Time . | . . . . . . . . . . . . . . Total Robot Build Rating . | . . . . . . . . . . . . . . Part Schematics Acquired 3 | . . . . 3 . . . . . . . . . Parts Built 2 | . . . . . . . . . . . 2 . . Authchips . | . . . . . . . . . . . . . . Time 139 | . . . . . . . . . . . 139 . . Total Part Build Rating 18 | . . . . . . . . . . . 18 . . Parts Repaired 2 | . . . . 1 . 1 . . . . . . . Time 76 | . . . . 38 . 38 . . . . . . . Parts Recycled 3 | . 1 . . . 1 . . . 1 . . . . Recycled Matter 152 | . . . . . 121 . . . 31 . . . . Retrieved Matter . | . . . . . . . . . . . . . . Retrieved Components . | . . . . . . . . . . . . . . Parts Scanalyzed 3 | . . . . 3 . . . . . . . . . Part Schematics Acquired 3 | . . . . 3 . . . . . . . . . Parts Damaged . | . . . . . . . . . . . . . . Bothacking | -11 -10 -10 -10 -8 -7 -6 -5 -5 -4 -4 -4 -3 -2 ------------ Run | Yrd Mat Min Sub Mat Fac Fac Fac DSF Fac Was Fac Res Res Used RIF Installer . | . . . . . . . . . . . . . . Robots Hacked 1 | . . . . . . . . . . . . . 1 Non-combat . | . . . . . . . . . . . . . . Combat 1 | . . . . . . . . . . . . . 1 Robot Hacks Applied 1 | . . . . . . . . . . . . . 1 parse_system 1 | . . . . . . . . . . . . . 1 Relay Couplers Released . | . . . . . . . . . . . . . . Fabnet Peak Effective % . | . . . . . . . . . . . . . . Robots Rewired . | . . . . . . . . . . . . . . Allies Hacked . | . . . . . . . . . . . . . . Hacks Repelled . | . . . . . . . . . . . . . . Allies | -11 -10 -10 -10 -8 -7 -6 -5 -5 -4 -4 -4 -3 -2 -------- Run | Yrd Mat Min Sub Mat Fac Fac Fac DSF Fac Was Fac Res Res Total Allies 4 | . . 3 . . . . . . . 1 . . . Largest Group 3 | . . 3 3 . . . . . . 1 . . . Highest-Rated Group 46 | . . 40 40 . . . . . . 46 . . . Highest-Rated Ally 46 | . . 16 16 . . . . . . 46 . . . Total Orders . | . . . . . . . . . . . . . . Ally Attacks 25 | . . . 20 . . . . . . 5 . . . Total Damage 210 | . . . 57 . . . . . . 153 . . . Kills 1 | . . . 1 . . . . . . . . . . Allies Corrupted . | . . . . . . . . . . . . . . Allies Melted . | . . . . . . . . . . . . . . Intel | -11 -10 -10 -10 -8 -7 -6 -5 -5 -4 -4 -4 -3 -2 ------- Run | Yrd Mat Min Sub Mat Fac Fac Fac DSF Fac Was Fac Res Res Robot Analysis Total . | . . . . . . . . . . . . . . Derelict Logs Recovered 2 | . . 1 1 . . . . . . . . . . Drone Launches 2 | . . . . . . . . . . . . . 2 Drone Recoveries 1 | . . . . . . . . . . . . . 1 Exploration | -11 -10 -10 -10 -8 -7 -6 -5 -5 -4 -4 -4 -3 -2 ------------- Run | Yrd Mat Min Sub Mat Fac Fac Fac DSF Fac Was Fac Res Res Turns Passed 8442 | 72 406 859 816 1715 1035 1107 42 301 246 92 688 524 539 Spaces Moved 4767 | 55 173 620 636 899 508 488 23 133 258 185 280 286 223 Core 81 | 6 . . . . . . . . . . 18 51 6 Treads 1905 | . . . . 379 508 488 23 72 . . . 218 217 Legs 1520 | . 51 620 109 520 . . . . . . 204 16 . Wheels 698 | 49 122 . 527 . . . . . . . . . . Hover 563 | . . . . . . . . 61 258 185 58 1 . Flight . | . . . . . . . . . . . . . . Fastest Speed 40 | 50 90 120 110 90 160 162 162 48 40 40 40 50 50 Average Speed 124 | 89 99 120 111 129 165 163 162 135 40 40 104 137 166 Slowest Speed 900 | 100 120 120 120 240 245 243 162 400 40 40 190 160 900 Overloaded Moves . | . . . . . . . . . . . . . . Propulsion Burnouts . | . . . . . . . . . . . . . . Robots Hopped . | . . . . . . . . . . . . . . Cave-ins Triggered 1 | . . . . . . 1 . . . . . . . Exploration Rate (%) 33 | 4 36 93 25 82 12 13 1 95 6 80 9 6 8 Regions Visited 13 Branch Regions 2 Pre-discovered Areas . | . . . . . . . . . . . . . . Known Exits Taken 3 | . . . . . . . 1 . . . 1 1 . Unknown Exits Taken 7 | 1 1 1 1 1 1 1 . . . . . . . Scrap Searched 2 | . . 1 1 . . . . . . . . . . Spaces Dug . | . . . . . . . . . . . . . . Terrain Destroyed 491 | . 49 6 7 271 23 25 . 6 29 . 50 . 25 Melee . | . . . . . . . . . . . . . . Projectile 84 | . . . . 28 . . . 2 1 . 28 . 25 AOE 407 | . 49 6 7 243 23 25 . 4 28 . 22 . . Terrain Rammed . | . . . . . . . . . . . . . . Walls Destroyed . | . . . . . . . . . . . . . . Machines Disabled . | . . . . . . . . . . . . . . Actions | -11 -10 -10 -10 -8 -7 -6 -5 -5 -4 -4 -4 -3 -2 --------- Run | Yrd Mat Min Sub Mat Fac Fac Fac DSF Fac Was Fac Res Res Total 6717 | 76 379 710 724 1270 662 716 27 224 394 193 606 406 330 Wait 1212 | 7 168 57 53 170 92 146 . 38 109 4 270 53 45 Move 4755 | 54 172 619 635 898 507 487 22 132 258 184 279 285 223 Hop . | . . . . . . . . . . . . . . Pick Up 161 | 9 10 5 6 37 13 16 2 9 7 . 4 31 12 Fast Attach 48 | 3 2 . 3 12 3 9 . 5 2 . 4 2 3 Attach 106 | 3 3 1 2 18 9 9 2 4 6 . 12 20 17 Detach 3 | . . . . . 2 . . . 1 . . . . Swap 44 | . 3 5 3 12 6 6 1 3 2 1 . . 2 Drop 109 | . 6 8 12 31 7 8 . 15 5 . 7 7 3 Fire 277 | . 15 15 10 92 23 35 . 16 4 4 30 8 25 Melee . | . . . . . . . . . . . . . . Ram . | . . . . . . . . . . . . . . Kick . | . . . . . . . . . . . . . . Crush . | . . . . . . . . . . . . . . Escape Stasis 2 | . . . . . . . . 2 . . . . . Rewire . | . . . . . . . . . . . . . . Trap . | . . . . . . . . . . . . . . Miscellaneous . | . . . . . . . . . . . . . . Route ------- -11/Scrapyard -10/Materials -10/Mines (discovered 3 exits: [*Mat x2] / *Sub) -10/Subcaves -8/Materials -7/Factory (discovered 2 exits: *Fac / Sto) -6/Factory (discovered 5 exits: *Fac / Low x2 / Ext x2) -5/Factory -5/DSF -4/Factory -4/Waste -4/Factory (discovered 4 exits: *Res x4) -3/Research -2/Research (discovered 2 exits: Qua x2) History --------- Turn | Location | Event 24 | -11/Scrapyard | Discovered new exit (range 16) 73 | -11/Scrapyard | Entered Materials 243 | -10/Materials | Core integrity fell below 50% 304 | -10/Materials | Build established: Mutant 447 | -10/Materials | Discovered new exit (range 11) 479 | -10/Materials | Entered Mines 530 | -10/Mines | Discovered new exit (range 12) 934 | -10/Mines | Assisted by bots powering up and referring to "LRC-V3" 980 | -10/Mines | Discovered new exit (range 5) 1106 | -10/Mines | Discovered new exit (range 9) 1167 | -10/Mines | Met a Derelict shopkeep closing up shop 1338 | -10/Mines | Entered Subcaves 1338 | -10/Subcaves | Accompanied by 3 allies 1339 | -10/Subcaves | Shifting Twisted Machinery released Battle Rifle 1357 | -10/Subcaves | Shifting Twisted Machinery released Sub. Machine Gun 1472 | -10/Subcaves | Shifting Twisted Machinery released Sub. Machine Gun 1472 | -10/Subcaves | Shifting Twisted Machinery released Battle Rifle 1479 | -10/Subcaves | Ambushed by swarm of Subdwellers 1479 | -10/Subcaves | Ambushed by Subdwellers from Twisted Machinery 1490 | -10/Subcaves | Ambushed by Subdwellers from Twisted Machinery 1529 | -10/Subcaves | Lost 3 allies 1620 | -10/Subcaves | Shifting Twisted Machinery released Battle Rifle 1644 | -10/Subcaves | Discovered new exit (range 15) 1681 | -10/Subcaves | A swath of the cavern ceiling suddenly collapsed 2003 | -10/Subcaves | Learned Materials garrison access intel 2005 | -10/Subcaves | Visited 4L-MR0's lab 2067 | -10/Subcaves | Found Arachnoskeleton 2154 | -10/Subcaves | Entered Materials 2154 | -8/Materials | Evolved 4 slots: Propulsion x2, Utility x1, Weapon x1 2156 | -8/Materials | Attached Arachnoskeleton, gained temporary slots: Propulsion x3 2332 | -8/Materials | Repaired Riot Gun 2954 | -8/Materials | First assault squad dispatched 2998 | -8/Materials | Build established: Scavenger-Tank 3138 | -8/Materials | Destroyed 7 combat bots 3710 | -8/Materials | Build established: Scavenger-Skirmisher 3769 | -8/Materials | System corruption reached 10% 3798 | -8/Materials | Discovered new exit (range 9) 3802 | -8/Materials | Lost 3 parts (1n2u) 3869 | -8/Materials | Entered Factory 3869 | -7/Factory | Evolved 2 slots: Power x1, Weapon x1 3870 | -7/Factory | Identified exit to Storage 4245 | -7/Factory | Build established: Scavenger-Gunner 4586 | -7/Factory | Build established: Scavenger-Skirmisher 4756 | -7/Factory | Garrison activated, responded to threat 4822 | -7/Factory | Discovered new exit (range 5) 4904 | -7/Factory | Entered another Factory area 4904 | -6/Factory | Evolved 2 slots: Utility x2 5059 | -6/Factory | Crushed by falling debris 5706 | -6/Factory | Identified exit to Lower Caves 5706 | -6/Factory | Identified exit to Extension 5775 | -6/Factory | Build established: Scavenger-Gunner 5801 | -6/Factory | Repaired Arm. Treads 5959 | -6/Factory | Discovered new exit (range 11) 6011 | -6/Factory | Entered another Factory area 6011 | -5/Factory | Evolved 2 slots: Utility x1, Weapon x1 6053 | -5/Factory | Identified exit to DSF 6053 | -5/Factory | Entered DSF 6120 | -5/DSF | Additional patrols routed to DSF 6245 | -5/DSF | Sterilization system engaged 6248 | -5/DSF | Lost 5 parts (2n1u2w) 6265 | -5/DSF | Ambient heat levels rising (+10) 6268 | -5/DSF | Destroyed 9 combat bots 6280 | -5/DSF | Ambient heat levels rising (+10) 6295 | -5/DSF | Ambient heat levels rising (+10) 6310 | -5/DSF | Ambient heat levels rising (+10) 6312 | -5/DSF | Discovered new exit (range 15) 6323 | -5/DSF | Identified exit to Factory 6325 | -5/DSF | Ambient heat levels rising (+10) 6340 | -5/DSF | Ambient heat levels rising (+10) 6354 | -5/DSF | Entered Factory 6354 | -4/Factory | Evolved 2 slots: Propulsion x2 6600 | -4/Factory | Sucked down chute 6600 | -4/Factory | Entered Waste 6601 | -4/Waste | Met a frightened Derelict 6608 | -4/Waste | Spotted C-40 Crusher 6612 | -4/Waste | Spotted C-40 Crusher 6615 | -4/Waste | EMP discharged 6640 | -4/Waste | Spotted C-40 Crusher 6640 | -4/Waste | Spotted C-40 Crusher 6644 | -4/Waste | Spotted C-40 Crusher 6647 | -4/Waste | Build established: Gunner 6681 | -4/Waste | Spotted C-40 Crusher 6686 | -4/Waste | Discovered new exit (range 16) 6691 | -4/Waste | Identified exit to Factory 6692 | -4/Waste | Entered Factory 6846 | -4/Factory | Fabricated Enh. Quantum Rifle (x2) 6911 | -4/Factory | System corruption reached 10% 6913 | -4/Factory | Lost 3 parts (2n1w) 7080 | -4/Factory | Lost 4 parts (1n2u1w) 7220 | -4/Factory | Identified exit to Research 7292 | -4/Factory | Lost 7 parts (2p1n1u3w) 7372 | -4/Factory | Core integrity fell below 50% 7380 | -4/Factory | Entered Research 7380 | -3/Research | Evolved 2 slots: Power x1, Weapon x1 7401 | -3/Research | Lost 9 parts (1p3n1u4w) 7649 | -3/Research | Build established: Mutant 7689 | -3/Research | System corruption reached 10% 7719 | -3/Research | Central database locked down 7731 | -3/Research | Found Launcher Loader 7884 | -3/Research | Discovered new exit (range 7) 7899 | -3/Research | Identified exit to Research 7904 | -3/Research | Entered another Research area 7904 | -2/Research | Evolved 2 slots: Utility x2 7974 | -2/Research | Identified exit to Quarantine 8103 | -2/Research | Build established: Scavenger-Executioner 8347 | -2/Research | Lost 13 parts (4p1n6u2w) 8415 | -2/Research | Core integrity fell below 50% 8436 | -2/Research | Core integrity fell below 20% 8443 | -2/Research | Destroyed by G-73 Enforcer with Phase Gun Last Messages --------------- 08417_ Adv. Heat Sink destroyed. 08418_ K-01 Serf collects debris. 08419_ R-10 Processor collects Lgt. Ion Engine. 08420_ Acquired Enh. Nova Cannon. 08422_ K-01 Serf collects debris. 08423_ Enh. Nova Cannon destroyed. 08426_ G-73 Enforcer suffers critical hit (Burn). 08426_ K-01 Serf collects debris. 08428_ R-10 Processor collects Enh. Optical Array. 08429_ Acquired Rnf. Quantum Reactor. 08430_ K-01 Serf collects debris. 08431_ R-10 Processor collects Adv. Melee Analysis Suite. 08434_ K-01 Serf collects debris. 08436_ R-10 Processor collects Lgt. Ion Engine. 08437_ R-10 Processor suffers critical hit (Burn). 08438_ K-01 Serf collects debris. 08439_ R-10 Processor collects Corrupted Imp. Dynamic Insulation System. 08442_ K-01 Serf collects debris. 08443_ T-07 Excavator destroyed. Map ----- +----------------------------------------------------+ | ?????????????????????????????????????????????????? | | ?????????????????????????????????????????????????? | | ?????????????????????????????????????????????????? | | ?????????????????????????????????????????????????? | | ?????????????????????????????????????????????????? | | ?????????????????????????????????????????????????? | | ?????????????????????????????????????????????????? | | ?????????????????????????????????????????????????? | | ?????????????????????????????????????????????????? | | ????????????????????????????????? ???????????????? | | ???????????????????????????????? ????????????????? | | ?????????????##????????##########+##?????????????? | | ????????????## ######### ??????????????? | | ????????????# # # # # ????????????????? | | ?????????????# ## ?????????????????? | | ????????????## ####### # ???????????????????? | | ????????????# #????????????????????? | | ????????????# % # #????????????????????? | | ????????????# ; %#????????????????????? | | ????????????# [] % ==+= #????????????????????? | | ????????????##[] ![!; #????????????????????? | | ????????????#" % k ##???????????????????? | | ????????????## %% # %;#???????????????????? | | ????>???????#" % #g]g ##???????????????????? | | ???????????# ###"## ####g !%##???????????????????? | | ???????????????#####??#%!@%!##???????????????????? | | ?????????????????????# # #????????????????????? | | ?????????????????????#?# R #????????????????????? | | ???????????????????????# #????????????????????? | | ???????????????????????# #????????????????????? | | ??????????###??????????# #????????????????????? | | ??????????# !????????# |#????????????????????? | | ??????????# !?????##u %########## ??????????? | | ###########! ?????## ! ????????? | | # """"?????## % ????????? | | # """???????#g ????????? | | ! # """???????# % ????????? | | ?? #? ????????# gg ####+#######?????????? | | ???? ??? ????????# % #????????????????????? | | ######+######+########## #????????????????????? | | % #????????????????????? | | % #????????????????????? | | + ?????????????????? | | ^ # ?????????????? | | ###########+############ #?? ???????????? | | #??????????????????????# #???? ????????????? | | #??????????????????????# #?????? ????????????? | | #??????????????????????# #????????????????????? | | ####??????????????????? #????????????????????? | | +?????????????????# =! +????????????????????? | +----------------------------------------------------+ Best States ------------- Heat Dissipation 99 Coolant Potential 100 Energy Generation 59 Energy Capacity 590 Matter Stores 300 Matter Capacity 300 Sight Range 18 Robot Scan Range 16 Terrain Scan Density 10 Cloak Strength 2 Additional Mass Support 9 Base Temperature (-) 200 Armor Coverage 600 Point Defense Rating 240 Weapon Cycling 15 Evasion (%) 57 Targeting Accuracy 12 Recoil Reduction 6 Energy Filtering 30 Particle Charging 20 Item Schematics ----------------- Aluminum Leg | -8/Materials | Scanalyzed Lgt. Nuclear Core | -8/Materials | Scanalyzed Med. Storage Unit | -8/Materials | Scanalyzed Robot Schematics ------------------ None Fabricated ------------ Enh. Quantum Rifle | x2 | -4/Factory | Preloaded Alien Tech Used ----------------- None Achievements -------------- Dangerous Findings Dynamic Key Remodeling Rockin' Loadout Challenges ------------ None Game ------ Seed MassNodeShielding Manual? 0 Play Time 02:32:21 Cumulative 15.3 hours Start 2024.03.06 @ 12:08:14 End 2024.03.07 @ 14:42:54 Sessions 11 Manual Loads 0 Difficulty Rogue Special Mode None Game No. 11 Rogue 11 Adventurer 0 Explorer 0 Win Type - Total 0 Types 0/0/0/0/0/0/0/0/0 Lore% 15 Gallery% 24 Achievement% 16 Wizard Run 0 Options --------- Layout 0 ASCII 0 Keyboard 0 Movement Mouse Keybinds 0 Fullscreen 1 Font 24/Smallcaps Map View 60x50 Zoom Use 0% Tactical HUD 1 Map Filters NONE Filters NONE Steam X RUN: 1ea76c5f-1753-4dc2-8e3d-246d4d7678ef